[Event "Baltic Zonal 2018"]
[Site "Tallinn"]
[Date "2018.05.18"]
[Round "7"]
[White "Haavamae, Henrik"]
[Black "Vicas, Marijus"]
[Result "0-1"]
[ECO "B28"]
[WhiteElo "2098"]
[BlackElo "2190"]
[Annotator "NA"]
[PlyCount "50"]
[EventDate "2018.??.??"]
[EventType "swiss"]
[EventCountry "EST"]
[SourceTitle "playchess.com"]
[Source "ChessBase"]
[SourceQuality "1"]
[TimeControl "5400+30"]

1. e4 c5 2. Nf3 a6 3. c4 e6 4. d4 cxd4 5. Nxd4 Nf6 6. Nc3 Qc7 7. Bd3 Be7 8. O-O O-O 9. Be3 d6 10. f4 Nbd7 11. Qf3 b6 12. Rae1 Bb7 13. g4 g6 14. g5 Nh5 15. Qh3 Nc5 16. Bc2 e5 17. Nf5 Nxf4 18. Bxf4 exf4 19. Qh6 Ne6 20. h4 Rfe8 21. Nxe7+ Rxe7 22. Nd5 Bxd5 23. exd5 Nd4 24. Be4 Rae8 25. Rxf4 Nf5 0-1

[Event "Baltic Zonal 2018"]
[Site "Tallinn"]
[Date "2018.05.19"]
[Round "8"]
[White "Narva, Mai"]
[Black "Vorobjov, Pavel"]
[Result "1/2-1/2"]
[ECO "B30"]
[WhiteElo "2322"]
[BlackElo "2233"]
[Annotator "NA"]
[PlyCount "96"]
[EventDate "2018.??.??"]
[EventType "swiss"]
[EventCountry "EST"]
[SourceTitle "playchess.com"]
[Source "ChessBase"]
[SourceQuality "1"]
[TimeControl "5400+30"]

1. e4 {[%emt 0:00:00]} c5 {[%emt 0:00:05]} 2. Nf3 {[%emt 0:00:00]} Nc6 {[%emt 0:00:33]} 3. Bb5 {[%emt 0:00:14]} e6 {[%emt 0:00:25]} 4. O-O {[%emt 0:00:41]} Nge7 {[%emt 0:00:28]} 5. Re1 {[%emt 0:02:24]} a6 {[%emt 0:00:37]} 6. Bf1 {[%emt 0:00:43]} d5 {[%emt 0:00:26]} 7. exd5 {[%emt 0:02:32]} Nxd5 {[%emt 0:00:13]} 8. d4 {[%emt 0:01:36]} Nf6 {[%emt 0:01:17]} 9. Be3 {[%emt 0:01:21]} cxd4 {[%emt 0:00:57]} 10. Nxd4 {[%emt 0:00:40]} Nxd4 {[%emt 0:01:12]} 11. Bxd4 {[%emt 0:01:10]} Be7 {[%emt 0:00:48]} 12. c4 {[%emt 0:02:21]} O-O {[%emt 0:03:26]} 13. Nc3 {[%emt 0:00:42]} Bd7 {[%emt 0:00:47]} 14. Qc2 {[%emt 0:14:07]} Ba4 {[%emt 0:04:57]} 15. Qd3 {[%emt 0:04:11]} Bc6 {[%emt 0:00:16]} 16. Rad1 {[%emt 0:01:33]} Qc7 {[%emt 0:08:19]} 17. Be5 {[%emt 0:03:27]} Qa5 {[%emt 0:00:28]} 18. Qg3 {[%emt 0:01:32]} Rfd8 {[%emt 0:00:55]} 19. Bd3 {[%emt 0:19:42]} Rd7 {[%emt 0:00:54]} 20. a3 {[%emt 0:03:36]} Qd8 {[%emt 0:05:50]} 21. Bc2 {[%emt 0:05:18]} Qf8 {[%emt 0:04:59]} 22. b4 {[%emt 0:09:09]} Rxd1 {[%emt 0:03:01]} 23. Rxd1 {[%emt 0:00:54]} Rd8 {[%emt 0:00:23]} 24. Re1 {[%emt 0:02:55]} Bd6 {[%emt 0:07:46]} 25. f4 {[%emt 0:03:17]} Bxe5 {[%emt 0:00:24]} 26. fxe5 {[%emt 0:00:45]} Rd2 {[%emt 0:01:02]} 27. Re2 {[%emt 0:01:26]} Rxe2 {[%emt 0:03:53]} 28. Nxe2 {[%emt 0:00:07]} Nd7 {[%emt 0:03:08]} 29. Nd4 {[%emt 0:06:08]} Qb8 {[%emt 0:01:37]} 30. Nxc6 {[%emt 0:05:31]} bxc6 {[%emt 0:00:03]} 31. Bxh7+ {[%emt 0:02:15]} Kxh7 {[%emt 0:01:43]} 32. Qd3+ {[%emt 0:00:09]} Kg8 {[%emt 0:00:33]} 33. Qxd7 {[%emt 0:00:21]} Qxe5 {[%emt 0:00:08]} 34. Qe8+ {[%emt 0:01:39]} Kh7 {[%emt 0:00:02]} 35. Qxf7 {[%emt 0:00:12]} Qd4+ {[%emt 0:00:22]} 36. Qf2 {[%emt 0:00:19]} Qxc4 {[%emt 0:00:19]} 37. Qe3 {[%emt 0:00:57]} Qd5 {[%emt 0:02:12]} 38. Kf2 {[%emt 0:01:11]} e5 {[%emt 0:01:31]} 39. Qh3+ {[%emt 0:01:34]} Kg6 {[%emt 0:00:51]} 40. Qg4+ {[%emt 0:00:38]} Kh6 {[%emt 0:00:19]} 41. Qe2 {[%emt 0:01:13]} a5 {[%emt 0:08:59]} 42. Qe3+ {[%emt 0:00:28]} Kh7 {[%emt 0:02:08]} 43. bxa5 {[%emt 0:00:54]} Qxa5 {[%emt 0:00:11]} 44. Qe4+ {[%emt 0:00:27]} g6 {[%emt 0:00:39]} 45. Qxc6 {[%emt 0:00:21]} Qd2+ {[%emt 0:03:22]} 46. Kf3 {[%emt 0:00:39]} Qd3+ {[%emt 0:00:02]} 47. Kf2 {[%emt 0:01:18]} Qd2+ {[%emt 0:00:02]} 48. Kf3 {[%emt 0:00:25]} Qd3+ {[%emt 0:00:02] Ke4} 1/2-1/2

[Event "Baltic Zonal 2018"]
[Site "Tallinn"]
[Date "2018.05.19"]
[Round "8"]
[White "Kalvaitis, Sigitas"]
[Black "Haavamae, Henrik"]
[Result "1/2-1/2"]
[ECO "B10"]
[WhiteElo "2194"]
[BlackElo "2098"]
[Annotator "NA"]
[PlyCount "22"]
[EventDate "2018.??.??"]
[EventType "swiss"]
[EventCountry "EST"]
[SourceTitle "playchess.com"]
[Source "ChessBase"]
[SourceQuality "1"]
[TimeControl "5400+30"]

1. e4 c6 2. Nc3 d5 3. Nf3 g6 4. d4 Bg7 5. h3 Nf6 6. e5 Ne4 7. Bd3 Nxc3 8. bxc3 c5 9. O-O Nc6 10. Re1 c4 11. Bf1 O-O 1/2-1/2

[Event "Baltic Zonal 2018"]
[Site "Tallinn"]
[Date "2018.05.19"]
[Round "8"]
[White "Berzina, Ilze"]
[Black "Beinoras, Mindaugas"]
[Result "0-1"]
[ECO "C62"]
[WhiteElo "2176"]
[BlackElo "2350"]
[Annotator "NA"]
[PlyCount "72"]
[EventDate "2018.??.??"]
[EventType "swiss"]
[EventCountry "EST"]
[SourceTitle "playchess.com"]
[Source "ChessBase"]
[SourceQuality "1"]
[TimeControl "5400+30"]

1. e4 {[%emt 0:00:00]} e5 {[%emt 0:00:10]} 2. Nf3 {[%emt 0:00:00]} Nc6 {[%emt 0:00:20]} 3. Bb5 {[%emt 0:00:00]} d6 {[%emt 0:00:29]} 4. d4 {[%emt 0:00:33]} Bd7 {[%emt 0:00:15]} 5. O-O {[%emt 0:01:17]} exd4 {[%emt 0:00:15]} 6. Nxd4 {[%emt 0:00:31]} g6 {[%emt 0:00:12]} 7. Nc3 {[%emt 0:02:48]} Bg7 {[%emt 0:00:21]} 8. Nxc6 {[%emt 0:02:03]} bxc6 {[%emt 0:02:58]} 9. Bc4 {[%emt 0:00:19]} Ne7 {[%emt 0:01:09]} 10. Be3 {[%emt 0:01:46]} Be6 {[%emt 0:02:54]} 11. Bb3 {[%emt 0:05:55]} c5 {[%emt 0:03:15]} 12. Nd5 {[%emt 0:10:04]} O-O {[%emt 0:19:07]} 13. Bg5 {[%emt 0:06:08]} Bxd5 {[%emt 0:01:51]} 14. Bxd5 {[%emt 0:00:13]} Rb8 {[%emt 0:00:31]} 15. Rb1 {[%emt 0:01:39]} Rxb2 {[%emt 0:04:34]} 16. Rxb2 {[%emt 0:06:04]} Bxb2 {[%emt 0:00:43]} 17. Qb1 {[%emt 0:06:36]} Bd4 {[%emt 0:08:03]} 18. Qb7 {[%emt 0:03:01]} c4 {[%emt 0:04:25]} 19. Bxc4 {[%emt 0:01:18]} Qd7 {[%emt 0:01:19]} 20. Bh6 {[%emt 0:04:11]} Rd8 {[%emt 0:00:59]} 21. Qb3 {[%emt 0:08:15]} Nc8 {[%emt 0:02:31]} 22. Qd3 {[%emt 0:05:18]} Bg7 {[%emt 0:02:51]} 23. Bg5 {[%emt 0:00:26]} Re8 {[%emt 0:00:59]} 24. Bb5 {[%emt 0:09:32]} c6 {[%emt 0:01:03]} 25. Ba6 {[%emt 0:03:00]} Nb6 {[%emt 0:03:36]} 26. Be3 {[%emt 0:07:17]} Qe7 {[%emt 0:04:48]} 27. Rd1 {[%emt 0:00:43]} Bf8 {[%emt 0:03:32]} 28. Qc3 {[%emt 0:02:14]} Qxe4 {[%emt 0:18:42]} 29. Rd4 {[%emt 0:00:16]} Qe6 {[%emt 0:00:19]} 30. Qxc6 {[%emt 0:00:20]} d5 {[%emt 0:00:16]} 31. Qc7 {[%emt 0:02:56]} Bg7 {[%emt 0:03:12]} 32. Rd1 {[%emt 0:00:45]} d4 {[%emt 0:00:17]} 33. Bxd4 {[%emt 0:01:10]} Qg4 {[%emt 0:01:19]} 34. Rd2 {[%emt 0:08:12]} Bxd4 {[%emt 0:00:32]} 35. h3 {[%emt 0:00:47]} Qh4 {[%emt 0:01:35]} 36. Qxa7 {[%emt 0:00:41]} Qf4 {[%emt 0:02:05]} 0-1

[Event "Baltic Zonal 2018"]
[Site "Tallinn"]
[Date "2018.05.20"]
[Round "9"]
[White "Narva, Mai"]
[Black "Kalvaitis, Sigitas"]
[Result "1-0"]
[ECO "C42"]
[WhiteElo "2322"]
[BlackElo "2194"]
[Annotator "NA"]
[PlyCount "59"]
[EventDate "2018.??.??"]
[EventType "swiss"]
[EventCountry "EST"]
[SourceTitle "playchess.com"]
[Source "ChessBase"]
[SourceQuality "1"]
[TimeControl "5400+30"]

1. e4 {[%emt 0:00:00]} e5 {[%emt 0:00:05]} 2. Nf3 {[%emt 0:00:00]} Nf6 {[%emt 0:00:05]} 3. Nxe5 {[%emt 0:00:04]} d6 {[%emt 0:00:25]} 4. Nf3 {[%emt 0:00:13]} Nxe4 {[%emt 0:00:06]} 5. Nc3 {[%emt 0:00:35]} Nxc3 {[%emt 0:00:05]} 6. dxc3 {[%emt 0:00:09]} Be7 {[%emt 0:00:04]} 7. Be3 {[%emt 0:03:43]} O-O {[%emt 0:00:26]} 8. Qd2 {[%emt 0:00:28] C42: Petroff Defence: 3 Nxe5 and unusual White 3rd moves} Qe8 {[%emt 0:00:04]} (8... Nd7 9. O-O-O c6 10. Kb1 d5 11. c4 Nb6 12. cxd5 Nxd5 13. Bc4 Bf5 14. Bxd5 cxd5 15. Qxd5 Qc8 {0-1 (39) Robson,R (2660)-Caruana,F (2804) Saint Louis 2018}) 9. O-O-O {[%emt 0:03:55]} Qa4 {[%emt 0:00:41] LiveBook: 11 Games} 10. a3 $146 {[%emt 0:01:20]} ({Predecessor:} 10. Kb1 Nc6 11. Nd4 Nxd4 12. cxd4 Bf6 13. Be2 c6 14. g4 Be6 15. b3 Qa3 {0-1 (31) McShane,L (2640)-Fridman,D (2633) Katowice 2017}) 10... Nc6 {[%emt 0:02:08]} 11. h4 {[%emt 0:21:49]} Ne5 {[%emt 0:11:01]} 12. h5 {[%emt 0:04:23]} Be6 {[%emt 0:09:38]} 13. Bd4 {[%emt 0:12:39]} Rad8 {[%emt 0:19:37]} 14. Qf4 {[%emt 0:06:33]} Nxf3 {[%emt 0:03:27]} (14... Qa5 $16) 15. gxf3 {[%emt 0:13:29]} c5 {[%emt 0:06:23]} 16. Rg1 {[%emt 0:04:04]} f6 {[%emt 0:11:29]} 17. Rxg7+ {[%emt 0:03:39]} Kxg7 {[%emt 0:00:51]} 18. Bxf6+ {[%emt 0:00:16]} Bxf6 {[%emt 0:01:57]} 19. Qxa4 {[%emt 0:00:09]} Bg5+ {[%emt 0:00:27]} 20. Kb1 {[%emt 0:00:08]} Bf4 {[%emt 0:01:04]} 21. Qe4 {[%emt 0:01:48]} Be5 {[%emt 0:00:08]} 22. Bd3 {[%emt 0:01:44]} Bf5 {[%emt 0:01:48]} 23. Qxb7+ {[%emt 0:00:28]} Rd7 {[%emt 0:00:12]} 24. Qc6 {[%emt 0:01:39]} Be6 {[%emt 0:00:40]} 25. Rg1+ {[%emt 0:03:37]} Kh8 {[%emt 0:00:16]} 26. h6 {[%emt 0:01:49]} Rb8 {[%emt 0:01:28]} 27. Re1 {[%emt 0:02:43]} Re7 {[%emt 0:02:27]} 28. Rxe5 {[%emt 0:02:50]} dxe5 {[%emt 0:00:11]} 29. Qd6 {[%emt 0:00:27]} Rbe8 $18 {[%emt 0:02:33]} 30. Bb5 {[%emt 0:00:23]} 1-0

[Event "Baltic Zonal 2018"]
[Site "Tallinn"]
[Date "2018.05.20"]
[Round "9"]
[White "Vorobjov, Pavel"]
[Black "Chukavin, Kirill"]
[Result "1/2-1/2"]
[ECO "E46"]
[WhiteElo "2233"]
[BlackElo "2310"]
[Annotator "NA"]
[PlyCount "50"]
[EventDate "2018.??.??"]
[EventType "swiss"]
[EventCountry "EST"]
[SourceTitle "playchess.com"]
[Source "ChessBase"]
[SourceQuality "1"]
[TimeControl "5400+30"]

1. d4 {[%emt 0:00:00]} Nf6 {[%emt 0:00:14]} 2. c4 {[%emt 0:00:00]} e6 {[%emt 0:00:10]} 3. Nc3 {[%emt 0:00:00]} Bb4 {[%emt 0:00:33]} 4. e3 {[%emt 0:00:02]} O-O {[%emt 0:02:01]} 5. Nge2 {[%emt 0:00:23]} d5 {[%emt 0:00:39]} 6. a3 {[%emt 0:00:13]} Bd6 {[%emt 0:00:10]} 7. Ng3 {[%emt 0:00:37]} c6 {[%emt 0:03:15] E46: Nimzo-Indian: Rubinstein: 4 e3 0-0 5 Ne2 without early Bd3} 8. Be2 {[%emt 0:01:24]} Nbd7 {[%emt 0:04:06]} 9. O-O {[%emt 0:00:30]} dxc4 {[%emt 0:08:45]} 10. Bxc4 {[%emt 0:00:15]} e5 {[%emt 0:01:51]} 11. Ba2 {[%emt 0:00:43]} Nb6 {[%emt 0:02:36] LiveBook: 12 Partien} 12. dxe5 {[%emt 0:01:45]} Bxe5 {[%emt 0:00:29]} 13. Qc2 {[%emt 0:00:15] [#]} h5 $146 {[%emt 0:12:40]} ({Predecessor:} 13... Qe7 14. e4 Be6 15. Bxe6 Qxe6 {½-½ (51) Lopez Martinez,J (2584)-Meier,G (2648) Batumi 2018}) 14. Rd1 {[%emt 0:04:26]} Qc7 {[%emt 0:02:26]} 15. Nf1 {[%emt 0:01:27]} Re8 {[%emt 0:04:46]} 16. Bd2 {[%emt 0:04:28]} Ng4 {[%emt 0:11:58]} 17. f4 {[%emt 0:02:47]} Bd6 {[%emt 0:06:26]} 18. Qg6 {[%emt 0:09:20]} Bxf4 {[%emt 0:16:12]} 19. exf4 {[%emt 0:08:54]} Nd5 {[%emt 0:01:33]} 20. Nxd5 {[%emt 0:04:26]} cxd5 $11 {[%emt 0:00:38]} 21. Bxd5 {[%emt 0:00:34]} Be6 {[%emt 0:01:31]} 22. Qxh5 {[%emt 0:02:11]} Qb6+ {[%emt 0:01:59]} 23. Be3 {[%emt 0:06:53]} Nxe3 {[%emt 0:00:14]} 24. Nxe3 {[%emt 0:00:09]} Qxe3+ {[%emt 0:00:33]} 25. Kh1 {[%emt 0:00:24]} Qxf4 {[%emt 0:02:13]} 1/2-1/2

[Event "Baltic Zonal 2018"]
[Site "Tallinn"]
[Date "2018.05.20"]
[Round "9"]
[White "Berzina, Ilze"]
[Black "Tokranovs, Dmitrijs"]
[Result "1-0"]
[ECO "C64"]
[WhiteElo "2176"]
[BlackElo "2337"]
[Annotator "NA"]
[PlyCount "87"]
[EventDate "2018.??.??"]
[EventType "swiss"]
[EventCountry "EST"]
[SourceTitle "playchess.com"]
[Source "ChessBase"]
[SourceQuality "1"]
[TimeControl "5400+30"]

1. e4 e5 2. Nf3 Nc6 3. Bb5 Bc5 4. c3 f5 5. d4 fxe4 6. Bxc6 dxc6 7. Nxe5 Bd6 8. Qh5+ g6 9. Qe2 Bf5 {C64: Ruy Lopez: Classical Defence (3...Bc5) except 4 0-0 Nf6} 10. Bf4 Nf6 11. Nd2 Qe7 12. h3 O-O-O 13. O-O-O $146 ({Predecessor:} 13. O-O Rhg8 14. Bh2 h5 15. Ndc4 Nd5 16. f3 exf3 17. Qxf3 Bxe5 18. Nxe5 {1-0 (31) Anand,V (2776)-L'Ami,E (2605) Germany 2017}) 13... Nd5 14. Be3 Bxe5 15. dxe5 Nxe3 16. Qxe3 Qxe5 (16... c5 $11) 17. Nc4 Qb5 18. Qxa7 Qa6 19. Qxa6 bxa6 20. Na5 Be6 21. Nxc6 Rxd1+ 22. Kxd1 Rf8 23. Ke2 Bxa2 24. Ra1 Bc4+ 25. Ke3 Rf6 26. Ne5 Bd5 27. Ra5 Bb7 28. Nc4 Kd7 29. Nd2 Rd6 30. Nxe4 Bxe4 31. Kxe4 Re6+ 32. Re5 Rf6 33. f4 Kd6 34. b4 Kc6 35. g4 Kb6 36. Re7 Rc6 37. Kd4 Rd6+ 38. Ke5 Rd3 39. Rxh7 Rxc3 40. f5 gxf5 $18 41. gxf5 Kb5 42. f6 Kxb4 43. f7 Rf3 44. Rh4+ 1-0